Workbook

Sheet Main
A1: Ammonia PFR Simulation | F1: Rgas | G1: 8.314 | H1: kJ/kmol/K
A2: Simplified Model | N2: from Hysys molar enthalpies | Q2: Heat Capacities at Tavg | T2: Heat Capacity - coefficients for kJ/mol/K | W2: Fit of Hysys properties at 150 atm | AA2: Pitzer Correlation for Pressure Correction of Heat of Reaction | AG2: Binary Interaction Matrix | AN2: Critical Temperature K | AO2: Critical Pressure kPa
A3: Feed Conditions | I3: Kinetics | N3: Heat of Reaction | Q3: Tavg | R3: 350 | U3: a | V3: b | W3: c | X3: d | Y3: e | AB3: Tc (K) | AC3: Pc (atm) | AD3: Pc (kPa) | AE3: Ω | AH3: N2 | AI3: H2 | AJ3: NH3 | AK3: Ar | AL3: CH4 | AN3: 126.2 | AO3: =33.5*101.325 -> 3394.3875
A4: N2 | B4: 12348 | C4: kmol/h | E4: Pressure | F4: 150 | G4: atm | I4: Forward | N4: aa | O4: -193144.5182 | Q4: N2 | R4: =HtCap(Q4,Tavg) -> 31.98008391 | T4: N2 | U4: 40.442 | V4: -35.279 | W4: 46.918 | X4: -19.41 | Y4: 0 | AA4: NH3 | AB4: 405.6 | AC4: 112.5 | AD4: =AC4*101.325 -> 11399.0625 | AE4: 0.25 | AG4: N2 | AH4: 0 | AI4: -0.036 | AJ4: 0.222 | AK4: 0 | AL4: 0.036 | AN4: 33.19 | AO4: =12.8*101.325 -> 1296.96
A5: H2 | B5: 37044 | E5: Temperature | F5: 270 | G5: degC | I5: k0f | J5: 10000 | K5: kmol/m3/s/atm^2 | N5: bb | O5: 484033.6316 | Q5: H2 | R5: =HtCap(Q5,Tavg) -> 29.909059 | T5: H2 | U5: 28.75 | V5: 1.86 | W5: 0 | X5: 0 | Y5: 0 | AA5: N2 | AB5: 126.2 | AC5: 33.5 | AD5: =AC5*101.325 -> 3394.3875 | AE5: 0.04 | AG5: H2 | AH5: -0.036 | AI5: 0 | AJ5: 0 | AK5: 0 | AL5: 0.202 | AN5: 405.65 | AO5: =111.3*101.325 -> 11277.4725
A6: Ar | B6: 12391 | E6: Heat of Reaction | F6: =HtRxn(FeedT) -> -107815.8547 | G6: kJ/kmol | J6: =J5*3600 -> 36000000 | K6: kmol/m3/h/atm^2 | N6: cc | O6: -994400.3268 | Q6: NH3 | R6: =HtCap(Q6,Tavg) -> 54.6524714 | T6: NH3 | U6: 1088.5 | V6: -5691.4 | W6: 11787 | X6: -10900 | Y6: 3801.6 | AA6: H2 | AB6: 33.2 | AC6: 12.8 | AD6: 1296.96 | AE6: 0 | AG6: NH3 | AH6: 0.222 | AI6: 0 | AJ6: 0 | AK6: 0 | AL6: 0 | AN6: 150.86 | AO6: =48.7*100 -> 4870
A7: CH4 | B7: 5652 | I7: Ef | J7: 91000 | K7: kJ/kmol | N7: dd | O7: 880535.7195 | Q7: Ar | R7: =HtCap(Q7,Tavg) -> 22.08879466 | T7: Ar | U7: 36.819 | V7: -53.01 | W7: 63.973 | X7: -27.022 | Y7: 0 | AG7: Ar | AH7: 0 | AI7: 0 | AJ7: 0 | AK7: 0 | AL7: 0.023 | AN7: 190.564 | AO7: =45.8*101.325 -> 4640.685
I8: Reverse | N8: ee | O8: -290784.0951 | Q8: CH4 | R8: =HtCap(Q8,Tavg) -> 56.05157555 | T8: CH4 | U8: 24.709 | V8: 50.297 | W8: 0 | X8: 0 | Y8: 0 | AA8: Pitzer Acentric Factor | AG8: CH4 | AH8: 0.036 | AI8: 0.202 | AJ8: 0 | AK8: 0.023 | AL8: 0
B9: Void Fraction | C9: 0.4 | I9: k0r | J9: 13000000000 | K9: kmol/m3/s/atm | Z9: N2 | AA9: 0.039
B10: Particle Diameter | C10: 0.001 | D10: m | J10: =J9*3600 -> 46800000000000 | K10: kmol/m3/h/atm | Z10: H2 | AA10: -0.216
B11: Reactor Diameter | C11: 3 | D11: m | F11: ReactorX-sect Area | G11: =PI()*Dr^2/4 -> 7.068583471 | H11: m2 | I11: Er | J11: 141000 | K11: kJ/kmol | S11: Final Temperature | T11: =I7085 -> 418.1567389 | U11: C | Z11: NH3 | AA11: 0.25
B12: Reactor Length | C12: 1 | D12: m | F12: Reactor Volume | G12: =Ar*Lr -> 7.068583471 | H12: m3 | S12: Final Conversion | T12: =T7085 -> 0.2184514031 | Z12: Ar | AA12: 0.001
Z13: CH4 | AA13: 0.011
C14: Molar Flow Rates - kmol/h | K14: Partial Pressure - atm | P14: Reaction Rates - kmol/m3/h | S14: Energy Balance
B15: Volume (m3) | C15: N2 | D15: H2 | E15: NH3 | F15: Ar | G15: CH4 | H15: Total | I15: Temp- erature (degC) | J15: N2 | K15: H2 | L15: NH3 | M15: Ar | N15: CH4 | O15: Forward | P15: Reverse | Q15: dFN2/dV | R15: Heat of Reaction (kJ/kmol) | S15: dT/dV | T15: Conversion (N2 Basis)
B16: 0 | C16: =FeedN2 -> 12348 | D16: =FeedH2 -> 37044 | E16: 0 | F16: =FeedAr -> 12391 | G16: =FeedCH4 -> 5652 | H16: =SUM(C16:G16) -> 67435 | I16: =FeedT -> 270 | J16: =C16/$H16*FeedP -> 27.46644917 | K16: =D16/$H16*FeedP -> 82.39934752 | L16: =E16/$H16*FeedP -> 0 | M16: =F16/$H16*FeedP -> 27.56209683 | N16: =G16/$H16*FeedP -> 12.57210647 | O16: =k0f*EXP(-Ef/Rgas/(I16+273.15))*J16 ^ 0.5 * K16 ^ 1.5 -> 249.9305477 | P16: =k0r*EXP(-Er/Rgas/(I16+273.15))*L16 -> 0 | Q16: =-eps*(O16-P16) -> -99.97221907 | R16: =HtRxnP(I16,FeedP) -> -114646.0589 | S16: =(O16-P16)*(-R16)*eps/(C16*Cp_N2+D16*Cp_H2+E16*Cp_NH3+F16*Cp_Ar+G16*Cp_CH4) -> 5.475165283 | T16: =(FeedN2-C16)/FeedN2 -> 0
B17: 0.001 | C17: =C16+Q16*(B17-B16) -> 12347.90003 | D17: =FeedH2-3*(FeedN2-C17) -> 37043.70008 | E17: =2*(FeedN2-C17) -> 0.1999444382 | F17: =F16 -> 12391 | G17: =G16 -> 5652 | H17: =SUM(C17:G17) -> 67434.80006 | I17: =I16+S16*(B17-B16) -> 270.0054752 | J17: 27.46630824 | K17: 82.39892471 | L17: 0.0004447505694 | M17: 27.56217856 | N17: 12.57214375 | O17: =k0f*EXP(-Ef/Rgas/(I17+273.15))*J17 ^ 0.5 * K17 ^ 1.5 -> 249.978757 | P17: 0.0005728805833 | Q17: =-eps*(O17-P17) -> -99.99127367 | R17: =HtRxnP(I17,FeedP) -> -114645.9637 | S17: =(O17-P17)*(-R17)*eps/(C17*Cp_N2+D17*Cp_H2+E17*Cp_NH3+F17*Cp_Ar+G17*Cp_CH4) -> 5.476207541 | T17: 8.096227654e-06
B18: 0.002 | C18: =C17+Q17*(B18-B17) -> 12347.80004 | D18: 37043.40011 | E18: 0.3999269855 | F18: =F17 -> 12391 | G18: =G17 -> 5652 | H18: =SUM(C18:G18) -> 67434.60007 | I18: =I17+S17*(B18-B17) -> 270.0109514 | J18: 27.46616727 | K18: 82.39850181 | L18: 0.0008895885459 | M18: 27.56226029 | N18: 12.57218103 | O18: 250.0269838 | P18: 0.001146234534 | Q18: -100.010335 | R18: =HtRxnP(I18,FeedP) -> -114645.8685 | S18: 5.477250171 | T18: 1.619399844e-05
B19: 0.003 | C19: 12347.70003 | D19: 37043.10008 | E19: 0.5999476556 | F19: 12391 | G19: 5652 | H19: 67434.40005 | I19: 270.0164286 | J19: 27.46602628 | K19: 82.39807884 | L19: 0.001334513961 | M19: 27.56234205 | N19: 12.57221832 | O19: 250.0752281 | P19: 0.001720062263 | Q19: -100.0294032 | R19: -114645.7734 | S19: 5.478293171 | T19: 2.429331291e-05
B20: 0.004 | C20: 12347.6 | D20: 37042.79999 | E20: 0.800006462 | F20: 12391 | G20: 5652 | H20: 67434.19999 | I20: 270.0219069 | J20: 27.46588526 | K20: 82.39765578 | L20: 0.001779526847 | M20: 27.56242382 | N20: 12.57225562 | O20: 250.1234897 | P20: 0.002294364179 | Q20: -100.0484781 | R20: -114645.6782 | S20: 5.479336543 | T20: 3.239417161e-05
B21: 0.005 | C21: 12347.49995 | D21: 37042.49984 | E21: 1.000103418 | F21: 12391 | G21: 5652 | H21: 67433.9999 | I21: 270.0273863 | J21: 27.46574421 | K21: 82.39723263 | L21: 0.002224627235 | M21: 27.5625056 | N21: 12.57229293 | O21: 250.1717688 | P21: 0.002869140694 | Q21: -100.0675599 | R21: -114645.583 | S21: 5.480380286 | T21: 4.049657508e-05
B22: 0.006 | C22: 12347.39988 | D22: 37042.19964 | E22: 1.200238538 | F22: 12391 | G22: 5652 | H22: 67433.79976 | I22: 270.0328666 | J22: 27.46560313 | K22: 82.3968094 | L22: 0.002669815157 | M22: 27.56258741 | N22: 12.57233024 | O22: 250.2200654 | P22: 0.003444392217 | Q22: -100.0866484 | R22: -114645.4877 | S22: 5.481424401 | T22: 4.860052389e-05
B23: 0.007 | C23: 12347.29979 | D23: 37041.89938 | E23: 1.400411835 | F23: 12391 | G23: 5652 | H23: 67433.59959 | I23: 270.0383481 | J23: 27.46546203 | K23: 82.39638609 | L23: 0.003115090645 | M23: 27.56266922 | N23: 12.57236756 | O23: 250.2683795 | P23: 0.004020119162 | Q23: -100.1057437 | R23: -114645.3925 | S23: 5.482468888 | T23: 5.670601858e-05
B24: 0.008 | C24: 12347.19969 | D24: 37041.59907 | E24: 1.600623322 | F24: 12391 | G24: 5652 | H24: 67433.39938 | I24: 270.0438305 | J24: 27.4653209 | K24: 82.3959627 | L24: 0.00356045373 | M24: 27.56275106 | N24: 12.57240489 | O24: 250.316711 | P24: 0.004596321938 | Q24: -100.1248459 | R24: -114645.2973 | S24: 5.483513748 | T24: 6.48130597e-05
B25: 0.009 | C25: 12347.09956 | D25: 37041.29869 | E25: 1.800873014 | F25: 12391 | G25: 5652 | H25: 67433.19913 | I25: 270.049314 | J25: 27.46517974 | K25: 82.39553922 | L25: 0.004005904445 | M25: 27.56283291 | N25: 12.57244222 | O25: 250.36506 | P25: 0.00517300096 | Q25: -100.1439548 | R25: -114645.202 | S25: 5.484558979 | T25: 7.29216478e-05
B26: 0.01 | C26: 12346.99942 | D26: 37040.99826 | E26: 2.001160924 | F26: 12391 | G26: 5652 | H26: 67432.99884 | I26: 270.0547986 | J26: 27.46503855 | K26: 82.39511566 | L26: 0.004451442821 | M26: 27.56291477 | N26: 12.57247957 | O26: 250.4134266 | P26: 0.005750156639 | Q26: -100.1630706 | R26: -114645.1068 | S26: 5.485604583 | T26: 8.103178344e-05
B27: 0.011 | C27: 12346.89926 | D27: 37040.69777 | E27: 2.201487065 | F27: 12391 | G27: 5652 | H27: 67432.79851 | I27: 270.0602842 | J27: 27.46489734 | K27: 82.39469202 | L27: 0.004897068889 | M27: 27.56299666 | N27: 12.57251692 | O27: 250.4618106 | P27: 0.006327789388 | Q27: -100.1821931 | R27: -114645.0115 | S27: 5.48665056 | T27: 8.914346715e-05
B28: 0.012 | C28: 12346.79907 | D28: 37040.39722 | E28: 2.401851451 | F28: 12391 | G28: 5652 | H28: 67432.59815 | I28: 270.0657709 | J28: 27.4647561 | K28: 82.39426829 | L28: 0.005342782683 | M28: 27.56307856 | N28: 12.57255427 | O28: 250.5102122 | P28: 0.006905899621 | Q28: -100.2013225 | R28: -114644.9162 | S28: 5.48769691 | T28: 9.725669951e-05
B29: 0.013 | C29: 12346.69887 | D29: 37040.09662 | E29: 2.602254096 | F29: 12391 | G29: 5652 | H29: 67432.39775 | I29: 270.0712586 | J29: 27.46461483 | K29: 82.39384448 | L29: 0.005788584233 | M29: 27.56316047 | N29: 12.57259164 | O29: 250.5586312 | P29: 0.007484487751 | Q29: -100.2204587 | R29: -114644.8209 | S29: 5.488743633 | T29: 0.0001053714811
B30: 0.014 | C30: 12346.59865 | D30: 37039.79596 | E30: 2.802695013 | F30: 12391 | G30: 5652 | H30: 67432.1973 | I30: 270.0767473 | J30: 27.46447353 | K30: 82.39342059 | L30: 0.006234473572 | M30: 27.5632424 | N30: 12.57262901 | O30: 250.6070678 | P30: 0.008063554193 | Q30: -100.2396017 | R30: -114644.7256 | S30: 5.489790729 | T30: 0.0001134878123
B31: 0.015 | C31: 12346.49841 | D31: 37039.49524 | E31: 3.003174217 | F31: 12391 | G31: 5652 | H31: 67431.99683 | I31: 270.0822371 | J31: 27.4643322 | K31: 82.39299661 | L31: 0.006680450732 | M31: 27.56332435 | N31: 12.57266639 | O31: 250.655522 | P31: 0.008643099362 | Q31: -100.2587516 | R31: -114644.6303 | S31: 5.490838199 | T31: 0.0001216056939
B32: 0.016 | C32: 12346.39815 | D32: 37039.19446 | E32: 3.20369172 | F32: 12391 | G32: 5652 | H32: 67431.79631 | I32: 270.0877279 | J32: 27.46419085 | K32: 82.39257255 | L32: 0.007126515744 | M32: 27.56340631 | N32: 12.57270377 | O32: 250.7039937 | P32: 0.009223123673 | Q32: -100.2779082 | R32: -114644.535 | S32: 5.491886043 | T32: 0.0001297251263
B33: 0.017 | C33: 12346.29788 | D33: 37038.89363 | E33: 3.404247537 | F33: 12391 | G33: 5652 | H33: 67431.59575 | I33: 270.0932198 | J33: 27.46404947 | K33: 82.3921484 | L33: 0.00757266864 | M33: 27.56348829 | N33: 12.57274117 | O33: 250.752483 | P33: 0.00980362754 | Q33: -100.2970718 | R33: -114644.4397 | S33: 5.49293426 | T33: 0.0001378461102
B34: 0.018 | C34: 12346.19758 | D34: 37038.59274 | E34: 3.60484168 | F34: 12391 | G34: 5652 | H34: 67431.39516 | I34: 270.0987127 | J34: 27.46390806 | K34: 82.39172418 | L34: 0.008018909452 | M34: 27.56357029 | N34: 12.57277857 | O34: 250.8009899 | P34: 0.01038461138 | Q34: -100.3162421 | R34: -114644.3443 | S34: 5.493982852 | T34: 0.0001459686459
B35: 0.019 | C35: 12346.09726 | D35: 37038.29179 | E35: 3.805474164 | F35: 12391 | G35: 5652 | H35: 67431.19453 | I35: 270.1042067 | J35: 27.46376662 | K35: 82.39129986 | L35: 0.008465238213 | M35: 27.5636523 | N35: 12.57281598 | O35: 250.8495143 | P35: 0.01096607561 | Q35: -100.3354193 | R35: -114644.249 | S35: 5.495031818 | T35: 0.0001540927342
B36: 0.02 | C36: 12345.99693 | D36: 37037.99078 | E36: 4.006145003 | F36: 12391 | G36: 5652 | H36: 67430.99385 | I36: 270.1097018 | J36: 27.46362516 | K36: 82.39087547 | L36: 0.008911654954 | M36: 27.56373433 | N36: 12.57285339 | O36: 250.8980563 | P36: 0.01154802065 | Q36: -100.3546033 | R36: -114644.1536 | S36: 5.496081158 | T36: 0.0001622183756
B37: 0.021 | C37: 12345.89657 | D37: 37037.68972 | E37: 4.206854209 | F37: 12391 | G37: 5652 | H37: 67430.79315 | I37: 270.1151978 | J37: 27.46348366 | K37: 82.39045099 | L37: 0.009358159707 | M37: 27.56381637 | N37: 12.57289082 | O37: 250.946616 | P37: 0.01213044691 | Q37: -100.3737942 | R37: -114644.0583 | S37: 5.497130873 | T37: 0.0001703455705
B38: 0.022 | C38: 12345.7962 | D38: 37037.3886 | E38: 4.407601798 | F38: 12391 | G38: 5652 | H38: 67430.5924 | I38: 270.120695 | J38: 27.46334214 | K38: 82.39002643 | L38: 0.009804752504 | M38: 27.56389843 | N38: 12.57292825 | O38: 250.9951932 | P38: 0.01271335481 | Q38: -100.3929919 | R38: -114643.9629 | S38: 5.498180963 | T38: 0.0001784743196
B39: 0.023 | C39: 12345.69581 | D39: 37037.08742 | E39: 4.608387782 | F39: 12391 | G39: 5652 | H39: 67430.39161 | I39: 270.1261932 | J39: 27.46320059 | K39: 82.38960178 | L39: 0.01025143338 | M39: 27.56398051 | N39: 12.57296569 | O39: 251.0437881 | P39: 0.01329674476 | Q39: -100.4121965 | R39: -114643.8675 | S39: 5.499231428 | T39: 0.0001866046235
B40: 0.024 | C40: 12345.59539 | D40: 37036.78618 | E40: 4.809212175 | F40: 12391 | G40: 5652 | H40: 67430.19079 | I40: 270.1316924 | J40: 27.46305902 | K40: 82.38917705 | L40: 0.01069820236 | M40: 27.5640626 | N40: 12.57300313 | O40: 251.0924006 | P40: 0.0138806172 | Q40: -100.431408 | R40: -114643.7721 | S40: 5.500282268 | T40: 0.0001947364826
B41: 0.025 | C41: 12345.49496 | D41: 37036.48489 | E41: 5.010074991 | F41: 12391 | G41: 5652 | H41: 67429.98993 | I41: 270.1371927 | J41: 27.46291741 | K41: 82.38875223 | L41: 0.01114505948 | M41: 27.56414471 | N41: 12.57304059 | O41: 251.1410307 | P41: 0.01446497253 | Q41: -100.4506263 | R41: -114643.6767 | S41: 5.501333484 | T41: 0.0002028698976
B42: 0.026 | C42: 12345.39451 | D42: 37036.18354 | E42: 5.210976243 | F42: 12391 | G42: 5652 | H42: 67429.78902 | I42: 270.142694 | J42: 27.46277578 | K42: 82.38832734 | L42: 0.01159200478 | M42: 27.56422683 | N42: 12.57307805 | O42: 251.1896785 | P42: 0.01504981118 | Q42: -100.4698515 | R42: -114643.5813 | S42: 5.502385075 | T42: 0.0002110048689
B43: 0.027 | C43: 12345.29404 | D43: 37035.88213 | E43: 5.411915946 | F43: 12391 | G43: 5652 | H43: 67429.58808 | I43: 270.1481964 | J43: 27.46263412 | K43: 82.38790236 | L43: 0.01203903828 | M43: 27.56430897 | N43: 12.57311551 | O43: 251.2383439 | P43: 0.01563513356 | Q43: -100.4890835 | R43: -114643.4858 | S43: 5.503437042 | T43: 0.0002191413972
B44: 0.028 | C44: 12345.19355 | D44: 37035.58066 | E44: 5.612894113 | F44: 12391 | G44: 5652 | H44: 67429.38711 | I44: 270.1536998 | J44: 27.46249243 | K44: 82.38747729 | L44: 0.01248616001 | M44: 27.56439113 | N44: 12.57315299 | O44: 251.287027 | P44: 0.0162209401 | Q44: -100.5083224 | R44: -114643.3904 | S44: 5.504489385 | T44: 0.000227279483
B45: 0.029 | C45: 12345.09304 | D45: 37035.27913 | E45: 5.813910758 | F45: 12391 | G45: 5652 | H45: 67429.18609 | I45: 270.1592043 | J45: 27.46235071 | K45: 82.38705214 | L45: 0.01293337002 | M45: 27.56447331 | N45: 12.57319047 | O45: 251.3357278 | P45: 0.01680723121 | Q45: -100.5275682 | R45: -114643.2949 | S45: 5.505542105 | T45: 0.0002354191269
B46: 0.03 | C46: 12344.99252 | D46: 37034.97755 | E46: 6.014965895 | F46: 12391 | G46: 5652 | H46: 67428.98503 | I46: 270.1647099 | J46: 27.46220897 | K46: 82.38662691 | L46: 0.01338066832 | M46: 27.5645555 | N46: 12.57322796 | O46: 251.3844462 | P46: 0.01739400731 | Q46: -100.5468209 | R46: -114643.1995 | S46: 5.506595201 | T46: 0.0002435603294
B47: 0.031 | C47: 12344.89197 | D47: 37034.67591 | E47: 6.216059536 | F47: 12391 | G47: 5652 | H47: 67428.78394 | I47: 270.1702164 | J47: 27.4620672 | K47: 82.38620159 | L47: 0.01382805496 | M47: 27.5646377 | N47: 12.57326546 | O47: 251.4331824 | P47: 0.01798126884 | Q47: -100.5660805 | R47: -114643.104 | S47: 5.507648673 | T47: 0.000251703091
B48: 0.032 | C48: 12344.7914 | D48: 37034.37421 | E48: 6.417191697 | F48: 12391 | G48: 5652 | H48: 67428.58281 | I48: 270.1757241 | J48: 27.4619254 | K48: 82.38577619 | L48: 0.01427552997 | M48: 27.56471992 | N48: 12.57330296 | O48: 251.4819363 | P48: 0.0185690162 | Q48: -100.5853469 | R48: -114643.0085 | S48: 5.508702523 | T48: 0.0002598474124
B49: 0.033 | C49: 12344.69082 | D49: 37034.07246 | E49: 6.618362391 | F49: 12391 | G49: 5652 | H49: 67428.38164 | I49: 270.1812328 | J49: 27.46178357 | K49: 82.3853507 | L49: 0.01472309337 | M49: 27.56480216 | N49: 12.57334047 | O49: 251.5307079 | P49: 0.01915724983 | Q49: -100.6046202 | R49: -114642.913 | S49: 5.509756749 | T49: 0.0002679932941
B50: 0.034 | C50: 12344.59021 | D50: 37033.77064 | E50: 6.819571632 | F50: 12391 | G50: 5652 | H50: 67428.18043 | I50: 270.1867426 | J50: 27.46164171 | K50: 82.38492513 | L50: 0.0151707452 | M50: 27.56488442 | N50: 12.57337799 | O50: 251.5794972 | P50: 0.01974597014 | Q50: -100.6239005 | R50: -114642.8175 | S50: 5.510811353 | T50: 0.0002761407366
B51: 0.035 | C51: 12344.48959 | D51: 37033.46877 | E51: 7.020819432 | F51: 12391 | G51: 5652 | H51: 67427.97918 | I51: 270.1922534 | J51: 27.46149983 | K51: 82.38449948 | L51: 0.0156184855 | M51: 27.56496669 | N51: 12.57341552 | O51: 251.6283042 | P51: 0.02033517755 | Q51: -100.6431876 | R51: -114642.722 | S51: 5.511866334 | T51: 0.0002842897405
B52: 0.036 | C52: 12344.38895 | D52: 37033.16684 | E52: 7.222105808 | F52: 12391 | G52: 5652 | H52: 67427.77789 | I52: 270.1977652 | J52: 27.46135791 | K52: 82.38407374 | L52: 0.01606631428 | M52: 27.56504898 | N52: 12.57345306 | O52: 251.677129 | P52: 0.0209248725 | Q52: -100.6624816 | R52: -114642.6265 | S52: 5.512921692 | T52: 0.0002924403064
B53: 0.037 | C53: 12344.28828 | D53: 37032.86485 | E53: 7.423430771 | F53: 12391 | G53: 5652 | H53: 67427.57657 | I53: 270.2032782 | J53: 27.46121597 | K53: 82.38364792 | L53: 0.0165142316 | M53: 27.56513128 | N53: 12.5734906 | O53: 251.7259715 | P53: 0.0215150554 | Q53: -100.6817826 | R53: -114642.5309 | S53: 5.513977429 | T53: 0.0003005924348
B54: 0.038 | C54: 12344.1876 | D54: 37032.56281 | E54: 7.624794336 | F54: 12391 | G54: 5652 | H54: 67427.37521 | I54: 270.2087921 | J54: 27.461074 | K54: 82.38322201 | L54: 0.01696223747 | M54: 27.5652136 | N54: 12.57352815 | O54: 251.7748318 | P54: 0.02210572667 | Q54: -100.7010904 | R54: -114642.4354 | S54: 5.515033544 | T54: 0.0003087461263
B55: 0.039 | C55: 12344.0869 | D55: 37032.26071 | E55: 7.826196517 | F55: 12391 | G55: 5652 | H55: 67427.1738 | I55: 270.2143072 | J55: 27.46093201 | K55: 82.38279602 | L55: 0.01741033194 | M55: 27.56529594 | N55: 12.5735657 | O55: 251.8237098 | P55: 0.02269688675 | Q55: -100.7204052 | R55: -114642.3399 | S55: 5.516090036 | T55: 0.0003169013815
B56: 0.04 | C56: 12343.98618 | D56: 37031.95854 | E56: 8.027637327 | F56: 12391 | G56: 5652 | H56: 67426.97236 | I56: 270.2198233 | J56: 27.46078998 | K56: 82.38236995 | L56: 0.01785851503 | M56: 27.56537829 | N56: 12.57360327 | O56: 251.8726057 | P56: 0.02328853606 | Q56: -100.7397269 | R56: -114642.2443 | S56: 5.517146907 | T56: 0.0003250582008
B57: 0.041 | C57: 12343.88544 | D57: 37031.65632 | E57: 8.229116781 | F57: 12391 | G57: 5652 | H57: 67426.77088 | I57: 270.2253404 | J57: 27.46064793 | K57: 82.38194379 | L57: 0.01830678677 | M57: 27.56546066 | N57: 12.57364084 | O57: 251.9215193 | P57: 0.02388067502 | Q57: -100.7590555 | R57: -114642.1487 | S57: 5.518204157 | T57: 0.0003332165849
B58: 0.042 | C58: 12343.78468 | D58: 37031.35405 | E58: 8.430634892 | F58: 12391 | G58: 5652 | H58: 67426.56937 | I58: 270.2308586 | J58: 27.46050585 | K58: 82.38151754 | L58: 0.0187551472 | M58: 27.56554304 | N58: 12.57367842 | O58: 251.9704507 | P58: 0.02447330406 | Q58: -100.778391 | R58: -114642.0531 | S58: 5.519261786 | T58: 0.0003413765343
B59: 0.043 | C59: 12343.6839 | D59: 37031.05171 | E59: 8.632191674 | F59: 12391 | G59: 5652 | H59: 67426.36781 | I59: 270.2363779 | J59: 27.46036374 | K59: 82.38109122 | L59: 0.01920359636 | M59: 27.56562544 | N59: 12.573716 | O59: 252.0194 | P59: 0.02506642361 | Q59: -100.7977334 | R59: -114641.9575 | S59: 5.520319793 | T59: 0.0003495380496
B60: 0.044 | C60: 12343.58311 | D60: 37030.74932 | E60: 8.833787141 | F60: 12391 | G60: 5652 | H60: 67426.16621 | I60: 270.2418982 | J60: 27.4602216 | K60: 82.38066481 | L60: 0.01965213426 | M60: 27.56570786 | N60: 12.5737536 | O60: 252.068367 | P60: 0.02566003409 | Q60: -100.8170828 | R60: -114641.8619 | S60: 5.52137818 | T60: 0.0003577011314
B61: 0.045 | C61: 12343.48229 | D61: 37030.44687 | E61: 9.035421306 | F61: 12391 | G61: 5652 | H61: 67425.96458 | I61: 270.2474196 | J61: 27.46007944 | K61: 82.38023831 | L61: 0.02010076095 | M61: 27.56579029 | N61: 12.5737912 | O61: 252.1173519 | P61: 0.02625413593 | Q61: -100.8364391 | R61: -114641.7663 | S61: 5.522436946 | T61: 0.0003658657801
B62: 0.046 | C62: 12343.38145 | D62: 37030.14436 | E62: 9.237094185 | F62: 12391 | G62: 5652 | H62: 67425.76291 | I62: 270.252942 | J62: 27.45993724 | K62: 82.37981173 | L62: 0.02054947646 | M62: 27.56587275 | N62: 12.57382881 | O62: 252.1663546 | P62: 0.02684872955 | Q62: -100.8558024 | R62: -114641.6707 | S62: 5.523496092 | T62: 0.0003740319965
B63: 0.047 | C63: 12343.2806 | D63: 37029.84179 | E63: 9.438805789 | F63: 12391 | G63: 5652 | H63: 67425.56119 | I63: 270.2584655 | J63: 27.45979502 | K63: 82.37938506 | L63: 0.02099828082 | M63: 27.56595521 | N63: 12.57386642 | O63: 252.2153752 | P63: 0.02744381539 | Q63: -100.8751725 | R63: -114641.575 | S63: 5.524555617 | T63: 0.0003821997809
B64: 0.048 | C64: 12343.17972 | D64: 37029.53917 | E64: 9.640556134 | F64: 12391 | G64: 5652 | H64: 67425.35944 | I64: 270.2639901 | J64: 27.45965277 | K64: 82.37895831 | L64: 0.02144717406 | M64: 27.56603769 | N64: 12.57390405 | O64: 252.2644136 | P64: 0.02803939387 | Q64: -100.8945497 | R64: -114641.4794 | S64: 5.525615523 | T64: 0.000390369134
B65: 0.049 | C65: 12343.07883 | D65: 37029.23648 | E65: 9.842345234 | F65: 12391 | G65: 5652 | H65: 67425.15765 | I65: 270.2695157 | J65: 27.45951049 | K65: 82.37853148 | L65: 0.02189615622 | M65: 27.56612019 | N65: 12.57394168 | O65: 252.3134699 | P65: 0.02863546543 | Q65: -100.9139338 | R65: -114641.3837 | S65: 5.526675809 | T65: 0.0003985400564
B66: 0.05 | C66: 12342.97791 | D66: 37028.93374 | E66: 10.0441731 | F66: 12391 | G66: 5652 | H66: 67424.95583 | I66: 270.2750423 | J66: 27.45936819 | K66: 82.37810456 | L66: 0.02234522732 | M66: 27.56620271 | N66: 12.57397932 | O66: 252.362544 | P66: 0.02923203049 | Q66: -100.9333248 | R66: -114641.2881 | S66: 5.527736475 | T66: 0.0004067125486
B67: 0.051 | C67: 12342.87698 | D67: 37028.63094 | E67: 10.24603975 | F67: 12391 | G67: 5652 | H67: 67424.75396 | I67: 270.2805701 | J67: 27.45922585 | K67: 82.37767756 | L67: 0.02279438741 | M67: 27.56628524 | N67: 12.57401696 | O67: 252.4116361 | P67: 0.02982908948 | Q67: -100.9527228 | R67: -114641.1924 | S67: 5.528797521 | T67: 0.0004148866112
B68: 0.052 | C68: 12342.77603 | D68: 37028.32808 | E68: 10.4479452 | F68: 12391 | G68: 5652 | H68: 67424.55205 | I68: 270.2860989 | J68: 27.45908349 | K68: 82.37725047 | L68: 0.0232436365 | M68: 27.56636779 | N68: 12.57405462 | O68: 252.460746 | P68: 0.03042664283 | Q68: -100.9721277 | R68: -114641.0967 | S68: 5.529858949 | T68: 0.0004230622447
B69: 0.053 | C69: 12342.67506 | D69: 37028.02517 | E69: 10.64988945 | F69: 12391 | G69: 5652 | H69: 67424.35011 | I69: 270.2916287 | J69: 27.4589411 | K69: 82.3768233 | L69: 0.02369297465 | M69: 27.56645035 | N69: 12.57409228 | O69: 252.5098738 | P69: 0.03102469097 | Q69: -100.9915397 | R69: -114641.001 | S69: 5.530920757 | T69: 0.0004312394498
B70: 0.054 | C70: 12342.57406 | D70: 37027.72219 | E70: 10.85187253 | F70: 12391 | G70: 5652 | H70: 67424.14813 | I70: 270.2971597 | J70: 27.45879868 | K70: 82.37639604 | L70: 0.02414240187 | M70: 27.56653294 | N70: 12.57412995 | O70: 252.5590196 | P70: 0.03162323434 | Q70: -101.0109585 | R70: -114640.9053 | S70: 5.531982947 | T70: 0.0004394182269
B71: 0.055 | C71: 12342.47305 | D71: 37027.41916 | E71: 11.05389445 | F71: 12391 | G71: 5652 | H71: 67423.94611 | I71: 270.3026916 | J71: 27.45865623 | K71: 82.3759687 | L71: 0.0245919182 | M71: 27.56661553 | N71: 12.57416762 | O71: 252.6081832 | P71: 0.03222227336 | Q71: -101.0303844 | R71: -114640.8096 | S71: 5.533045518 | T71: 0.0004475985766
B72: 0.056 | C72: 12342.37202 | D72: 37027.11607 | E72: 11.25595522 | F72: 12391 | G72: 5652 | H72: 67423.74404 | I72: 270.3082247 | J72: 27.45851376 | K72: 82.37554127 | L72: 0.02504152367 | M72: 27.56669815 | N72: 12.5742053 | O72: 252.6573649 | P72: 0.03282180847 | Q72: -101.0498172 | R72: -114640.7138 | S72: 5.534108471 | T72: 0.0004557804996
B73: 0.057 | C73: 12342.27097 | D73: 37026.81292 | E73: 11.45805485 | F73: 12391 | G73: 5652 | H73: 67423.54195 | I73: 270.3137588 | J73: 27.45837125 | K73: 82.37511376 | L73: 0.02549121832 | M73: 27.56678078 | N73: 12.57424299 | O73: 252.7065644 | P73: 0.0334218401 | Q73: -101.069257 | R73: -114640.6181 | S73: 5.535171805 | T73: 0.0004639639963
B74: 0.058 | C74: 12342.1699 | D74: 37026.50971 | E74: 11.66019337 | F74: 12391 | G74: 5652 | H74: 67423.33981 | I74: 270.319294 | J74: 27.45822872 | K74: 82.37468616 | L74: 0.02594100218 | M74: 27.56686342 | N74: 12.57428069 | O74: 252.7557819 | P74: 0.03402236868 | Q74: -101.0887038 | R74: -114640.5224 | S74: 5.536235521 | T74: 0.0004721490673
B75: 0.059 | C75: 12342.06881 | D75: 37026.20644 | E75: 11.86237077 | F75: 12391 | G75: 5652 | H75: 67423.13763 | I75: 270.3248302 | J75: 27.45808616 | K75: 82.37425848 | L75: 0.02639087528 | M75: 27.56694609 | N75: 12.5743184 | O75: 252.8050173 | P75: 0.03462339464 | Q75: -101.1081576 | R75: -114640.4266 | S75: 5.53729962 | T75: 0.0004803357132
B76: 0.06 | C76: 12341.96771 | D76: 37025.90312 | E76: 12.06458709 | F76: 12391 | G76: 5652 | H76: 67422.93541 | I76: 270.3303675 | J76: 27.45794357 | K76: 82.37383071 | L76: 0.02684083765 | M76: 27.56702877 | N76: 12.57435611 | O76: 252.8542708 | P76: 0.03522491843 | Q76: -101.1276183 | R76: -114640.3308 | S76: 5.538364101 | T76: 0.0004885239346
B77: 0.061 | C77: 12341.86658 | D77: 37025.59974 | E77: 12.26684232 | F77: 12391 | G77: 5652 | H77: 67422.73316 | I77: 270.3359059 | J77: 27.45780095 | K77: 82.37340286 | L77: 0.02729088933 | M77: 27.56711146 | N77: 12.57439383 | O77: 252.9035422 | P77: 0.03582694046 | Q77: -101.1470861 | R77: -114640.235 | S77: 5.539428964 | T77: 0.000496713732
B78: 0.062 | C78: 12341.76543 | D78: 37025.2963 | E78: 12.4691365 | F78: 12391 | G78: 5652 | H78: 67422.53086 | I78: 270.3414453 | J78: 27.45765831 | K78: 82.37297493 | L78: 0.02774103034 | M78: 27.56719417 | N78: 12.57443156 | O78: 252.9528316 | P78: 0.03642946118 | Q78: -101.1665608 | R78: -114640.1393 | S78: 5.540494211 | T78: 0.000504905106
B79: 0.063 | C79: 12341.66427 | D79: 37024.9928 | E79: 12.67146962 | F79: 12391 | G79: 5652 | H79: 67422.32853 | I79: 270.3469858 | J79: 27.45751564 | K79: 82.37254691 | L79: 0.02819126073 | M79: 27.5672769 | N79: 12.5744693 | O79: 253.0021389 | P79: 0.03703248103 | Q79: -101.1860426 | R79: -114640.0435 | S79: 5.54155984 | T79: 0.0005130980571
B80: 0.064 | C80: 12341.56308 | D80: 37024.68924 | E80: 12.8738417 | F80: 12391 | G80: 5652 | H80: 67422.12616 | I80: 270.3525274 | J80: =C80/$H80*FeedP -> 27.45737293 | K80: =D80/$H80*FeedP -> 82.3721188 | L80: =E80/$H80*FeedP -> 0.02864158053 | M80: =F80/$H80*FeedP -> 27.56735965 | N80: =G80/$H80*FeedP -> 12.57450704 | O80: =k0f*EXP(-Ef/Rgas/(I80+273.15))*J80 ^ 0.5 * K80 ^ 1.5 -> 253.0514643 | P80: =k0r*EXP(-Er/Rgas/(I80+273.15))*L80 -> 0.03763600043 | Q80: =-eps*(O80-P80) -> -101.2055313 | R80: =HtRxnP(I80,FeedP) -> -114639.9476 | S80: =(O80-P80)*(-R80)*eps/(C80*Cp_N2+D80*Cp_H2+E80*Cp_NH3+F80*Cp_Ar+G80*Cp_CH4) -> 5.542625852 | T80: =(FeedN2-C80)/FeedN2 -> 0.000521292586
B81: 0.065 | C81: =C80+Q80*(B81-B80) -> 12341.46187 | D81: =FeedH2-3*(FeedN2-C81) -> 37024.38562 | E81: =2*(FeedN2-C81) -> 13.07625277 | F81: 12391 | G81: 5652 | H81: 67421.92375 | I81: =I80+S80*(B81-B80) -> 270.35807 | J81: 27.4572302 | K81: 82.37169061 | L81: 0.02909198976 | M81: 27.56744241 | N81: 12.57454479 | O81: 253.1008078 | P81: 0.03824001982 | Q81: -101.2250271 | R81: -114639.8518 | S81: 5.543692248 | T81: 0.0005294886932
B82: 0.066 | C82: 12341.36065 | D82: 37024.08195 | E82: 13.27870282 | F82: =F81 -> 12391 | G82: =G81 -> 5652 | H82: =SUM(C82:G82) -> 67421.7213 | I82: 270.3636137 | J82: 27.45708744 | K82: 82.37126233 | L82: 0.02954248846 | M82: 27.56752519 | N82: 12.57458255 | O82: 253.1501692 | P82: 0.03884453965 | Q82: -101.2445299 | R82: -114639.756 | S82: 5.544759028 | T82: 0.0005376863792
B83: 0.067 | C83: 12341.2594 | D83: 37023.77821 | E83: 13.48119188 | F83: 12391 | G83: 5652 | H83: 67421.51881 | I83: 270.3691584 | J83: 27.45694466 | K83: 82.37083397 | L83: 0.02999307666 | M83: 27.56760798 | N83: 12.57462031 | O83: 253.1995487 | P83: 0.03944956034 | Q83: -101.2640396 | R83: -114639.6601 | S83: 5.545826191 | T83: 0.0005458856447
B84: 0.068 | C84: 12341.15814 | D84: 37023.47442 | E84: 13.68371996 | F84: 12391 | G84: 5652 | H84: 67421.31628 | I84: 270.3747043 | J84: 27.45680184 | K84: 82.37040552 | L84: 0.0304437544 | M84: 27.56769079 | N84: 12.57465809 | O84: 253.2489462 | P84: 0.04005508233 | Q84: -101.2835565 | R84: -114639.5643 | S84: 5.546893738 | T84: 0.0005540864901
B85: 0.069 | C85: 12341.05686 | D85: 37023.17057 | E85: 13.88628707 | F85: 12391 | G85: 5652 | H85: 67421.11371 | I85: 270.3802511 | J85: 27.456659 | K85: 82.36997699 | L85: 0.0308945217 | M85: 27.56777362 | N85: 12.57469587 | O85: 253.2983618 | P85: 0.04066110606 | Q85: -101.3030803 | R85: -114639.4684 | S85: 5.54796167 | T85: 0.0005622889161
B86: 0.07 | C86: 12340.95555 | D86: 37022.86666 | E86: 14.08889323 | F86: 12391 | G86: 5652 | H86: 67420.91111 | I86: 270.3857991 | J86: 27.45651613 | K86: 82.36954838 | L86: 0.03134537861 | M86: 27.56785646 | N86: 12.57473366 | O86: 253.3477954 | P86: 0.04126763197 | Q86: -101.3226111 | R86: -114639.3725 | S86: 5.549029985 | T86: 0.0005704929233
B87: 0.071 | C87: 12340.85423 | D87: 37022.56269 | E87: 14.29153846 | F87: 12391 | G87: 5652 | H87: 67420.70846 | I87: 270.3913481 | J87: 27.45637323 | K87: 82.36911968 | L87: 0.03179632515 | M87: 27.56793932 | N87: 12.57477145 | O87: 253.3972472 | P87: 0.0418746605 | Q87: -101.342149 | R87: -114639.2767 | S87: 5.550098686 | T87: 0.0005786985121
B88: 0.072 | C88: 12340.75289 | D88: 37022.25867 | E88: 14.49422275 | F88: 12391 | G88: 5652 | H88: 67420.50578 | I88: 270.3968982 | J88: 27.4562303 | K88: 82.36869089 | L88: 0.03224736136 | M88: 27.5680222 | N88: 12.57480925 | O88: 253.446717 | P88: 0.04248219208 | Q88: -101.3616939 | R88: -114639.1808 | S88: 5.551167771 | T88: 0.0005869056832
B89: 0.073 | C89: 12340.65153 | D89: 37021.95458 | E89: 14.69694614 | F89: 12391 | G89: 5652 | H89: 67420.30305 | I89: 270.4024494 | J89: 27.45608734 | K89: 82.36826202 | L89: 0.03269848727 | M89: 27.56810509 | N89: 12.57484707 | O89: 253.4962049 | P89: 0.04309022716 | Q89: -101.3812459 | R89: -114639.0849 | S89: 5.552237241 | T89: 0.0005951144372
B90: 0.074 | C90: 12340.55015 | D90: 37021.65044 | E90: 14.89970863 | F90: 12391 | G90: 5652 | H90: 67420.10029 | I90: 270.4080016 | J90: 27.45594435 | K90: 82.36783306 | L90: 0.03314970291 | M90: 27.568188 | N90: 12.57488488 | O90: 253.5457109 | P90: 0.04369876618 | Q90: -101.4008048 | R90: -114638.9889 | S90: 5.553307096 | T90: 0.0006033247746
B91: 0.075 | C91: 12340.44874 | D91: 37021.34623 | E91: 15.10251024 | F91: 12391 | G91: 5652 | H91: 67419.89749 | I91: 270.413555 | J91: 27.45580134 | K91: 82.36740402 | L91: 0.03360100832 | M91: 27.56827093 | N91: 12.57492271 | O91: 253.595235 | P91: 0.04430780956 | Q91: -101.4203709 | R91: -114638.893 | S91: 5.554377337 | T91: 0.0006115366959
B92: 0.076 | C92: 12340.34732 | D92: 37021.04197 | E92: 15.30535098 | F92: 12391 | G92: 5652 | H92: 67419.69465 | I92: 270.4191093 | J92: 27.4556583 | K92: 82.36697489 | L92: 0.03405240352 | M92: 27.56835387 | N92: 12.57496054 | O92: 253.6447772 | P92: 0.04491735777 | Q92: -101.439944 | R92: -114638.7971 | S92: 5.555447963 | T92: 0.0006197502018
B93: 0.077 | C93: 12340.24588 | D93: 37020.73765 | E93: 15.50823087 | F93: 12391 | G93: 5652 | H93: 67419.49177 | I93: 270.4246648 | J93: 27.45551522 | K93: 82.36654567 | L93: 0.03450388856 | M93: 27.56843683 | N93: 12.57499838 | O93: 253.6943376 | P93: 0.04552741123 | Q93: -101.4595241 | R93: -114638.7011 | S93: 5.556518976 | T93: 0.0006279652929
B94: 0.078 | C94: 12340.14443 | D94: 37020.43328 | E94: 15.71114992 | F94: 12391 | G94: 5652 | H94: 67419.28885 | I94: 270.4302213 | J94: 27.45537212 | K94: 82.36611637 | L94: 0.03495546346 | M94: 27.56851981 | N94: 12.57503623 | O94: 253.7439161 | P94: 0.04613797038 | Q94: -101.4791113 | R94: -114638.6052 | S94: 5.557590374 | T94: 0.0006361819696
B95: 0.079 | C95: 12340.04295 | D95: 37020.12884 | E95: 15.91410814 | F95: 12391 | G95: 5652 | H95: 67419.08589 | I95: 270.4357789 | J95: 27.455229 | K95: 82.36568699 | L95: 0.03540712826 | M95: 27.5686028 | N95: 12.57507409 | O95: 253.7935128 | P95: 0.04674903568 | Q95: -101.4987055 | R95: -114638.5092 | S95: 5.558662158 | T95: 0.0006444002326
B96: 0.08 | C96: 12339.94145 | D96: 37019.82434 | E96: 16.11710555 | F96: 12391 | G96: 5652 | H96: 67418.88289 | I96: 270.4413375 | J96: 27.45508584 | K96: 82.36525752 | L96: 0.03585888299 | M96: 27.56868581 | N96: 12.57511195 | O96: 253.8431277 | P96: 0.04736060756 | Q96: -101.5183068 | R96: -114638.4132 | S96: 5.559734329 | T96: 0.0006526200824
B97: 0.081 | C97: 12339.83993 | D97: 37019.51979 | E97: 16.32014217 | F97: 12391 | G97: 5652 | H97: 67418.67986 | I97: 270.4468973 | J97: 27.45494265 | K97: 82.36482796 | L97: 0.03631072768 | M97: 27.56876883 | N97: 12.57514982 | O97: 253.8927607 | P97: 0.04797268646 | Q97: -101.5379152 | R97: -114638.3172 | S97: 5.560806886 | T97: 0.0006608415196
B98: 0.082 | C98: 12339.73839 | D98: 37019.21517 | E98: 16.523218 | F98: 12391 | G98: 5652 | H98: 67418.47678 | I98: 270.4524581 | J98: 27.45479944 | K98: 82.36439832 | L98: 0.03676266237 | M98: 27.56885187 | N98: 12.5751877 | O98: 253.9424119 | P98: 0.04858527283 | Q98: -101.5575306 | R98: -114638.2212 | S98: 5.56187983 | T98: 0.0006690645448
B99: 0.083 | C99: 12339.63683 | D99: 37018.9105 | E99: 16.72633306 | F99: 12391 | G99: 5652 | H99: 67418.27367 | I99: 270.45802 | J99: 27.4546562 | K99: 82.3639686 | L99: 0.03721468709 | M99: 27.56893493 | N99: 12.57522559 | O99: 253.9920812 | P99: 0.04919836712 | Q99: -101.5771532 | R99: -114638.1252 | S99: 5.562953162 | T99: 0.0006772891585
B100: 0.084 | C100: 12339.53526 | D100: 37018.60577 | E100: 16.92948737 | F100: 12391 | G100: 5652 | H100: 67418.07051 | I100: 270.4635829 | J100: 27.45451293 | K100: 82.36353878 | L100: 0.03766680188 | M100: 27.56901801 | N100: 12.57526348 | O100: 254.0417688 | P100: 0.04981196976 | Q100: -101.5967827 | R100: -114638.0292 | S100: 5.56402688 | T100: 0.0006855153614
B101: 0.085 | C101: 12339.43366 | D101: 37018.30098 | E101: 17.13268093 | F101: 12391 | G101: 5652 | H101: 67417.86732 | I101: 270.4691469 | J101: 27.45436963 | K101: 82.36310888 | L101: 0.03811900675 | M101: 27.5691011 | N101: 12.57530138 | O101: 254.0914746 | P101: 0.05042608119 | Q101: -101.6164194 | R101: -114637.9332 | S101: 5.565100986 | T101: 0.000693743154
B102: 0.086 | C102: 12339.33204 | D102: 37017.99613 | E102: 17.33591377 | F102: 12391 | G102: 5652 | H102: 67417.66409 | I102: 270.474712 | J102: 27.4542263 | K102: 82.3626789 | L102: 0.03857130176 | M102: 27.56918421 | N102: 12.57533929 | O102: 254.1411986 | P102: 0.05104070188 | Q102: -101.6360632 | R102: -114637.8372 | S102: 5.56617548 | T102: 0.0007019725369
B103: 0.087 | C103: 12339.23041 | D103: 37017.69122 | E103: 17.5391859 | F103: 12391 | G103: 5652 | H103: 67417.46081 | I103: 270.4802782 | J103: 27.45408294 | K103: 82.36224883 | L103: 0.03902368693 | M103: 27.56926733 | N103: 12.57537721 | O103: 254.1909409 | P103: 0.05165583225 | Q103: -101.655714 | R103: -114637.7411 | S103: 5.567250361 | T103: 0.0007102035105
B104: 0.088 | C104: 12339.12875 | D104: 37017.38625 | E104: 17.74249732 | F104: 12391 | G104: 5652 | H104: 67417.2575 | I104: 270.4858455 | J104: 27.45393956 | K104: 82.36181868 | L104: 0.0394761623 | M104: 27.56935047 | N104: 12.57541513 | O104: 254.2407014 | P104: 0.05227147277 | Q104: -101.675372 | R104: -114637.645 | S104: 5.56832563 | T104: 0.0007184360757
B105: 0.089 | C105: 12339.02708 | D105: 37017.08123 | E105: 17.94584807 | F105: 12391 | G105: 5652 | H105: 67417.05415 | I105: 270.4914138 | J105: 27.45379615 | K105: 82.36138844 | L105: 0.03992872789 | M105: 27.56943363 | N105: 12.57545306 | O105: 254.2904801 | P105: 0.05288762386 | Q105: -101.695037 | R105: -114637.549 | S105: 5.569401288 | T105: 0.0007266702328
B106: 0.09 | C106: 12338.92538 | D106: 37016.77614 | E106: 18.14923814 | F106: 12391 | G106: 5652 | H106: 67416.85076 | I106: 270.4969832 | J106: 27.4536527 | K106: 82.36095811 | L106: 0.04038138374 | M106: 27.5695168 | N106: 12.575491 | O106: 254.3402771 | P106: 0.05350428598 | Q106: -101.7147091 | R106: -114637.4529 | S106: 5.570477334 | T106: 0.0007349059824
B107: 0.091 | C107: 12338.82367 | D107: 37016.471 | E107: 18.35266756 | F107: 12391 | G107: 5652 | H107: 67416.64733 | I107: 270.5025537 | J107: 27.45350923 | K107: 82.3605277 | L107: 0.04083412989 | M107: 27.5696 | N107: 12.57552895 | O107: 254.3900924 | P107: 0.05412145959 | Q107: -101.7343884 | R107: -114637.3568 | S107: 5.571553769 | T107: 0.0007431433253
B108: 0.092 | C108: 12338.72193 | D108: 37016.1658 | E108: 18.55613634 | F108: 12391 | G108: 5652 | H108: 67416.44386 | I108: 270.5081252 | J108: 27.45336573 | K108: 82.3600972 | L108: 0.04128696637 | M108: 27.5696832 | N108: 12.5755669 | O108: 254.4399259 | P108: 0.05473914511 | Q108: -101.7540747 | R108: -114637.2607 | S108: 5.572630592 | T108: 0.0007513822618
B109: 0.093 | C109: 12338.62018 | D109: 37015.86053 | E109: 18.75964449 | F109: 12391 | G109: 5652 | H109: 67416.24036 | I109: 270.5136979 | J109: 27.4532222 | K109: 82.35966661 | L109: 0.04173989321 | M109: 27.56976643 | N109: 12.57560486 | O109: 254.4897778 | P109: 0.05535734301 | Q109: -101.7737682 | R109: -114637.1646 | S109: 5.573707805 | T109: 0.0007596227926
B110: 0.094 | C110: 12338.5184 | D110: 37015.55521 | E110: 18.96319202 | F110: 12391 | G110: 5652 | H110: 67416.03681 | I110: 270.5192716 | J110: 27.45307865 | K110: 82.35923594 | L110: 0.04219291044 | M110: 27.56984967 | N110: 12.57564283 | O110: 254.5396479 | P110: 0.05597605373 | Q110: -101.7934687 | R110: -114637.0685 | S110: 5.574785407 | T110: 0.0007678649183
B111: 0.095 | C111: 12338.41661 | D111: 37015.24983 | E111: 19.16677896 | F111: 12391 | G111: 5652 | H111: 67415.83322 | I111: 270.5248464 | J111: 27.45293506 | K111: 82.35880519 | L111: 0.0426460181 | M111: 27.56993293 | N111: 12.57568081 | O111: 254.5895363 | P111: 0.05659527772 | Q111: -101.8131764 | R111: -114636.9723 | S111: 5.575863398 | T111: 0.0007761086395
B112: 0.096 | C112: 12338.3148 | D112: 37014.94439 | E112: 19.37040531 | F112: 12391 | G112: 5652 | H112: 67415.62959 | I112: 270.5304222 | J112: 27.45279145 | K112: 82.35837434 | L112: 0.04309921623 | M112: 27.5700162 | N112: 12.57571879 | O112: 254.6394431 | P112: 0.05721501543 | Q112: -101.8328912 | R112: -114636.8762 | S112: 5.576941779 | T112: 0.0007843539567
B113: 0.097 | C113: 12338.21296 | D113: 37014.63889 | E113: 19.5740711 | F113: 12391 | G113: 5652 | H113: 67415.42593 | I113: 270.5359992 | J113: 27.45264781 | K113: 82.35794342 | L113: 0.04355250484 | M113: 27.57009949 | N113: 12.57575678 | O113: 254.6893682 | P113: 0.05783526731 | Q113: -101.8526132 | R113: -114636.78 | S113: 5.57802055 | T113: 0.0007926008704
B114: 0.098 | C114: 12338.11111 | D114: 37014.33334 | E114: 19.77777632 | F114: 12391 | G114: 5652 | H114: 67415.22222 | I114: 270.5415772 | J114: 27.45250413 | K114: 82.3575124 | L114: 0.04400588399 | M114: 27.5701828 | N114: 12.57579478 | O114: 254.7393116 | P114: 0.05845603381 | Q114: -101.8723422 | R114: -114636.6839 | S114: 5.579099711 | T114: 0.0008008493814
B115: 0.099 | C115: 12338.00924 | D115: 37014.02772 | E115: 19.98152101 | F115: 12391 | G115: 5652 | H115: 67415.01848 | I115: 270.5471563 | J115: 27.45236043 | K115: 82.3570813 | L115: 0.0444593537 | M115: 27.57026612 | N115: 12.57583279 | O115: 254.7892734 | P115: 0.05907731538 | Q115: -101.8920784 | R115: -114636.5877 | S115: 5.580179262 | T115: 0.0008090994901
B116: 0.1 | C116: 12337.90735 | D116: 37013.72204 | E116: 20.18530516 | F116: 12391 | G116: 5652 | H116: 67414.81469 | I116: 270.5527365 | J116: 27.4522167 | K116: 82.35665011 | L116: 0.044912914 | M116: 27.57034946 | N116: 12.57587081 | O116: 254.8392535 | P116: 0.05969911248 | Q116: -101.9118218 | R116: -114636.4915 | S116: 5.581259204 | T116: 0.0008173511971
B117: 0.101 | C117: 12337.80544 | D117: 37013.41631 | E117: 20.38912881 | F117: 12391 | G117: 5652 | H117: 67414.61087 | I117: 270.5583177 | J117: 27.45207295 | K117: 82.35621884 | L117: 0.04536656493 | M117: 27.57043282 | N117: 12.57590883 | O117: 254.889252 | P117: 0.06032142554 | Q117: -101.9315722 | R117: -114636.3953 | S117: 5.582339536 | T117: 0.000825604503
B118: 0.102 | C118: 12337.7035 | D118: 37013.11051 | E118: 20.59299195 | F118: 12391 | G118: 5652 | H118: 67414.40701 | I118: 270.5639001 | J118: 27.45192916 | K118: 82.35578748 | L118: 0.04582030652 | M118: 27.57051619 | N118: 12.57594686 | O118: 254.9392689 | P118: 0.06094425504 | Q118: -101.9513299 | R118: -114636.2991 | S118: 5.58342026 | T118: 0.0008338594085
B119: 0.103 | C119: 12337.60155 | D119: 37012.80466 | E119: 20.79689461 | F119: 12391 | G119: 5652 | H119: 67414.20311 | I119: 270.5694835 | J119: 27.45178535 | K119: 82.35535604 | L119: 0.0462741388 | M119: 27.57059958 | N119: 12.5759849 | O119: 254.9893042 | P119: 0.06156760141 | Q119: -101.9710946 | R119: -114636.2029 | S119: 5.584501374 | T119: 0.000842115914
B120: 0.104 | C120: 12337.49958 | D120: 37012.49874 | E120: 21.0008368 | F120: 12391 | G120: 5652 | H120: 67413.99916 | I120: 270.575068 | J120: 27.4516415 | K120: 82.35492451 | L120: 0.04672806181 | M120: 27.57068299 | N120: 12.57602294 | O120: 255.0393578 | P120: 0.06219146511 | Q120: -101.9908665 | R120: -114636.1066 | S120: 5.58558288 | T120: 0.0008503740201
B121: 0.105 | C121: 12337.39759 | D121: 37012.19277 | E121: 21.20481853 | F121: 12391 | G121: 5652 | H121: 67413.79518 | I121: 270.5806536 | J121: 27.45149763 | K121: 82.35449289 | L121: 0.04718207559 | M121: 27.57076641 | N121: 12.57606099 | O121: 255.0894299 | P121: 0.0628158466 | Q121: -102.0106456 | R121: -114636.0104 | S121: 5.586664777 | T121: 0.0008586337275
B122: 0.106 | C122: 12337.29558 | D122: 37011.88674 | E122: 21.40883982 | F122: 12391 | G122: 5652 | H122: 67413.59116 | I122: 270.5862402 | J122: 27.45135373 | K122: 82.35406118 | L122: 0.04763618016 | M122: 27.57084985 | N122: 12.57609905 | O122: 255.1395204 | P122: 0.06344074633 | Q122: -102.0304319 | R122: -114635.9142 | S122: 5.587747067 | T122: 0.0008668950366
B123: 0.107 | C123: 12337.19355 | D123: 37011.58065 | E123: 21.61290069 | F123: 12391 | G123: 5652 | H123: 67413.3871 | I123: 270.591828 | J123: 27.4512098 | K123: 82.35362939 | L123: 0.04809037556 | M123: 27.57093331 | N123: 12.57613712 | O123: 255.1896293 | P123: 0.06406616475 | Q123: -102.0502253 | R123: -114635.8179 | S123: 5.588829748 | T123: 0.0008751579482
B124: 0.108 | C124: 12337.0915 | D124: 37011.2745 | E124: 21.81700114 | F124: 12391 | G124: 5652 | H124: 67413.183 | I124: 270.5974168 | J124: 27.45106584 | K124: 82.35319752 | L124: 0.04854466182 | M124: 27.57101679 | N124: 12.5761752 | O124: 255.2397567 | P124: 0.06469210232 | Q124: -102.0700258 | R124: -114635.7216 | S124: 5.589912821 | T124: 0.0008834224627
B125: 0.109 | C125: 12336.98943 | D125: 37010.96829 | E125: 22.02114119 | F125: 12391 | G125: 5652 | H125: 67412.97886 | I125: 270.6030067 | J125: 27.45092185 | K125: 82.35276555 | L125: 0.04899903898 | M125: 27.57110028 | N125: 12.57621328 | O125: 255.2899025 | P125: 0.0653185595 | Q125: -102.0898336 | R125: -114635.6254 | S125: 5.590996286 | T125: 0.0008916885808
B126: 0.11 | C126: 12336.88734 | D126: 37010.66202 | E126: 22.22532086 | F126: 12391 | G126: 5652 | H126: 67412.77468 | I126: 270.6085977 | J126: 27.45077783 | K126: 82.3523335 | L126: 0.04945350706 | M126: 27.57118378 | N126: 12.57625137 | O126: 255.3400667 | P126: 0.06594553673 | Q126: -102.1096485 | R126: -114635.5291 | S126: 5.592080144 | T126: 0.000899956303
B127: 0.111 | C127: 12336.78523 | D127: 37010.35569 | E127: 22.42954015 | F127: 12391 | G127: 5652 | H127: 67412.57046 | I127: 270.6141898 | J127: 27.45063379 | K127: 82.35190137 | L127: 0.04990806611 | M127: 27.57126731 | N127: 12.57628947 | O127: 255.3902494 | P127: 0.06657303449 | Q127: -102.1294706 | R127: -114635.4328 | S127: 5.593164395 | T127: 0.0009082256299
B128: 0.112 | C128: 12336.6831 | D128: 37010.0493 | E128: 22.6337991 | F128: 12391 | G128: 5652 | H128: 67412.3662 | I128: 270.619783 | J128: 27.45048972 | K128: 82.35146915 | L128: 0.05036271616 | M128: 27.57135085 | N128: 12.57632758 | O128: 255.4404506 | P128: 0.06720105321 | Q128: -102.1492998 | R128: -114635.3364 | S128: 5.594249039 | T128: 0.000916496562
B129: 0.113 | C129: 12336.58095 | D129: 37009.74285 | E129: 22.8380977 | F129: 12391 | G129: 5652 | H129: 67412.1619 | I129: 270.6253772 | J129: 27.45034561 | K129: 82.35103684 | L129: 0.05081745723 | M129: 27.57143441 | N129: 12.57636569 | O129: 255.4906703 | P129: 0.06782959336 | Q129: -102.1691363 | R129: -114635.2401 | S129: 5.595334076 | T129: 0.0009247691001
B130: 0.114 | C130: 12336.47878 | D130: 37009.43635 | E130: 23.04243597 | F130: 12391 | G130: 5652 | H130: 67411.95756 | I130: 270.6309725 | J130: 27.45020148 | K130: 82.35060444 | L130: 0.05127228937 | M130: 27.57151798 | N130: 12.57640381 | O130: 255.5409085 | P130: 0.06845865541 | Q130: -102.1889799 | R130: -114635.1438 | S130: 5.596419506 | T130: 0.0009330432446
B131: 0.115 | C131: 12336.37659 | D131: 37009.12978 | E131: 23.24681393 | F131: 12391 | G131: 5652 | H131: 67411.75319 | I131: 270.636569 | J131: 27.45005732 | K131: 82.35017196 | L131: 0.05172721261 | M131: 27.57160157 | N131: 12.57644194 | O131: 255.5911652 | P131: 0.06908823979 | Q131: -102.2088308 | R131: -114635.0475 | S131: 5.59750533 | T131: 0.0009413189961
B132: 0.116 | C132: 12336.27438 | D132: 37008.82315 | E132: 23.45123159 | F132: 12391 | G132: 5652 | H132: 67411.54877 | I132: 270.6421665 | J132: 27.44991313 | K132: 82.34973939 | L132: 0.05218222697 | M132: 27.57168518 | N132: 12.57648008 | O132: 255.6414404 | P132: 0.06971834699 | Q132: -102.2286888 | R132: -114634.9511 | S132: 5.598591548 | T132: 0.0009495963553
B133: 0.117 | C133: 12336.17216 | D133: 37008.51647 | E133: 23.65568897 | F133: 12391 | G133: 5652 | H133: 67411.34431 | I133: 270.6477651 | J133: 27.44976891 | K133: 82.34930673 | L133: 0.0526373325 | M133: 27.5717688 | N133: 12.57651822 | O133: 255.6917341 | P133: 0.07034897744 | Q133: -102.2485541 | R133: -114634.8547 | S133: 5.59967816 | T133: 0.0009578753226
B134: 0.118 | C134: 12336.06991 | D134: 37008.20972 | E134: 23.86018608 | F134: 12391 | G134: 5652 | H134: 67411.13981 | I134: 270.6533647 | J134: 27.44962466 | K134: 82.34887399 | L134: 0.05309252923 | M134: 27.57185244 | N134: 12.57655637 | O134: 255.7420464 | P134: 0.07098013162 | Q134: -102.2684265 | R134: -114634.7584 | S134: 5.600765166 | T134: 0.0009661558987
B135: 0.119 | C135: 12335.96764 | D135: 37007.90292 | E135: 24.06472293 | F135: 12391 | G135: 5652 | H135: 67410.93528 | I135: 270.6589655 | J135: 27.44948039 | K135: 82.34844116 | L135: 0.0535478172 | M135: 27.5719361 | N135: 12.57659453 | O135: 255.7923772 | P135: 0.07161180998 | Q135: -102.2883062 | R135: -114634.662 | S135: 5.601852566 | T135: 0.0009744380842
B136: 0.12 | C136: 12335.86535 | D136: 37007.59605 | E136: 24.26929954 | F136: 12391 | G136: 5652 | H136: 67410.7307 | I136: 270.6645674 | J136: 27.44933608 | K136: 82.34800825 | L136: 0.05400319642 | M136: 27.57201978 | N136: 12.5766327 | O136: 255.8427266 | P136: 0.07224401299 | Q136: -102.308193 | R136: -114634.5656 | S136: 5.602940361 | T136: 0.0009827218797
B137: 0.121 | C137: 12335.76304 | D137: 37007.28913 | E137: 24.47391593 | F137: 12391 | G137: 5652 | H137: 67410.52608 | I137: 270.6701703 | J137: 27.44919175 | K137: 82.34757524 | L137: 0.05445866695 | M137: 27.57210347 | N137: 12.57667087 | O137: 255.8930945 | P137: 0.0728767411 | Q137: -102.3280871 | R137: -114634.4692 | S137: 5.604028551 | T137: 0.0009910072857
B138: 0.122 | C138: 12335.66071 | D138: 37006.98214 | E138: 24.6785721 | F138: 12391 | G138: 5652 | H138: 67410.32143 | I138: 270.6757743 | J138: 27.44904738 | K138: 82.34714215 | L138: 0.05491422881 | M138: 27.57218718 | N138: 12.57670906 | O138: 255.943481 | P138: 0.07350999477 | Q138: -102.3479884 | R138: -114634.3728 | S138: 5.605117136 | T138: 0.0009992943028
B139: 0.123 | C139: 12335.55837 | D139: 37006.6751 | E139: 24.88326808 | F139: 12391 | G139: 5652 | H139: 67410.11673 | I139: 270.6813794 | J139: 27.44890299 | K139: 82.34670898 | L139: 0.05536988204 | M139: 27.5722709 | N139: 12.57674725 | O139: 255.9938861 | P139: 0.07414377447 | Q139: -102.3678969 | R139: -114634.2763 | S139: 5.606206116 | T139: 0.001007582932
B140: 0.124 | C140: 12335.456 | D140: 37006.36799 | E140: 25.08800387 | F140: 12391 | G140: 5652 | H140: 67409.912 | I140: 270.6869856 | J140: 27.44875857 | K140: 82.34627571 | L140: 0.05582562667 | M140: 27.57235464 | N140: 12.57678544 | O140: 256.0443098 | P140: 0.07477808066 | Q140: -102.3878127 | R140: -114634.1799 | S140: 5.607295492 | T140: 0.001015873173
B141: 0.125 | C141: 12335.35361 | D141: 37006.06083 | E141: 25.2927795 | F141: 12391 | G141: 5652 | H141: 67409.70722 | I141: 270.6925929 | J141: 27.44861412 | K141: 82.34584236 | L141: 0.05628146273 | M141: 27.5724384 | N141: 12.57682365 | O141: 256.0947521 | P141: 0.07541291381 | Q141: -102.4077357 | R141: -114634.0835 | S141: 5.608385263 | T141: 0.001024165027
B142: 0.126 | C142: 12335.2512 | D142: 37005.75361 | E142: 25.49759497 | F142: 12391 | G142: 5652 | H142: 67409.50241 | I142: 270.6982013 | J142: 27.44846964 | K142: 82.34540893 | L142: 0.05673739026 | M142: 27.57252218 | N142: 12.57686186 | O142: 256.145213 | P142: 0.07604827437 | Q142: -102.4276659 | R142: -114633.987 | S142: 5.60947543 | T142: 0.001032458494
B143: 0.127 | C143: 12335.14877 | D143: 37005.44632 | E143: 25.7024503 | F143: 12391 | G143: 5652 | H143: 67409.29755 | I143: 270.7038108 | J143: 27.44832513 | K143: 82.3449754 | L143: 0.05719340929 | M143: 27.57260597 | N143: 12.57690008 | O143: 256.1956926 | P143: 0.0766841628 | Q143: -102.4476034 | R143: -114633.8905 | S143: 5.610565994 | T143: 0.001040753575
B144: 0.128 | C144: 12335.04633 | D144: 37005.13898 | E144: 25.90734551 | F144: 12391 | G144: 5652 | H144: 67409.09265 | I144: 270.7094214 | J144: =C144/$H144*FeedP -> 27.4481806 | K144: =D144/$H144*FeedP -> 82.34454179 | L144: =E144/$H144*FeedP -> 0.05764951986 | M144: =F144/$H144*FeedP -> 27.57268978 | N144: =G144/$H144*FeedP -> 12.57693831 | O144: =k0f*EXP(-Ef/Rgas/(I144+273.15))*J144 ^ 0.5 * K144 ^ 1.5 -> 256.2461907 | P144: =k0r*EXP(-Er/Rgas/(I144+273.15))*L144 -> 0.07732057959 | Q144: =-eps*(O144-P144) -> -102.4675481 | R144: =HtRxnP(I144,FeedP) -> -114633.794 | S144: =(O144-P144)*(-R144)*eps/(C144*Cp_N2+D144*Cp_H2+E144*Cp_NH3+F144*Cp_Ar+G144*Cp_CH4) -> 5.611656953 | T144: =(FeedN2-C144)/FeedN2 -> 0.001049050272
B145: 0.129 | C145: =C144+Q144*(B145-B144) -> 12334.94386 | D145: =FeedH2-3*(FeedN2-C145) -> 37004.83158 | E145: =2*(FeedN2-C145) -> 26.1122806 | F145: 12391 | G145: 5652 | H145: 67408.88772 | I145: =I144+S144*(B145-B144) -> 270.715033 | J145: 27.44803603 | K145: 82.34410809 | L145: 0.058105722 | M145: 27.5727736 | N145: 12.57697655 | O145: 256.2967076 | P145: 0.07795752518 | Q145: -102.4875 | R145: -114633.6976 | S145: 5.61274831 | T145: 0.001057348583
B146: 0.13 | C146: 12334.84137 | D146: 37004.52412 | E146: 26.3172556 | F146: =F145 -> 12391 | G146: =G145 -> 5652 | H146: =SUM(C146:G146) -> 67408.68274 | I146: 270.7206458 | J146: 27.44789144 | K146: 82.34367431 | L146: 0.05856201575 | M146: 27.57285745 | N146: 12.57701479 | O146: 256.3472431 | P146: 0.07859500004 | Q146: -102.5074592 | R146: -114633.6011 | S146: 5.613840062 | T146: 0.00106564851
B147: 0.131 | C147: 12334.73886 | D147: 37004.21659 | E147: 26.52227052 | F147: 12391 | G147: 5652 | H147: 67408.47773 | I147: 270.7262596 | J147: 27.44774681 | K147: 82.34324044 | L147: 0.05901840113 | M147: 27.57294131 | N147: 12.57705304 | O147: 256.3977972 | P147: 0.07923300464 | Q147: -102.5274257 | R147: -114633.5045 | S147: 5.614932212 | T147: 0.001073950054
B148: 0.132 | C148: 12334.63634 | D148: 37003.90901 | E148: 26.72732537 | F148: 12391 | G148: 5652 | H148: 67408.27267 | I148: 270.7318745 | J148: 27.44760216 | K148: 82.34280648 | L148: 0.05947487818 | M148: 27.57302518 | N148: 12.5770913 | O148: 256.44837 | P148: 0.07987153945 | Q148: -102.5473994 | R148: -114633.408 | S148: 5.616024759 | T148: 0.001082253214
B149: 0.133 | C149: 12334.53379 | D149: 37003.60137 | E149: 26.93242017 | F149: 12391 | G149: 5652 | H149: 67408.06758 | I149: 270.7374906 | J149: 27.44745748 | K149: 82.34237243 | L149: 0.05993144694 | M149: 27.57310908 | N149: 12.57712957 | O149: 256.4989615 | P149: 0.08051060492 | Q149: -102.5673804 | R149: -114633.3115 | S149: 5.617117704 | T149: 0.001090557992
B150: 0.134 | C150: 12334.43122 | D150: 37003.29367 | E150: 27.13755493 | F150: 12391 | G150: 5652 | H150: 67407.86245 | I150: 270.7431077 | J150: 27.44731277 | K150: 82.3419383 | L150: 0.06038810744 | M150: 27.57319299 | N150: 12.57716784 | O150: 256.5495717 | P150: 0.08115020154 | Q150: -102.5873686 | R150: -114633.215 | S150: 5.618211045 | T150: 0.001098864388
B151: 0.135 | C151: 12334.32864 | D151: 37002.98591 | E151: 27.34272967 | F151: 12391 | G151: 5652 | H151: 67407.65727 | I151: 270.7487259 | J151: 27.44716803 | K151: 82.34150408 | L151: 0.06084485972 | M151: 27.57327691 | N151: 12.57720613 | O151: 256.6002007 | P151: 0.08179032976 | Q151: -102.6073641 | R151: -114633.1184 | S151: 5.619304785 | T151: 0.001107172403
B152: 0.136 | C152: 12334.22603 | D152: 37002.67808 | E152: 27.5479444 | F152: 12391 | G152: 5652 | H152: 67407.45206 | I152: 270.7543452 | J152: 27.44702326 | K152: 82.34106977 | L152: 0.0613017038 | M152: 27.57336086 | N152: 12.57724442 | O152: 256.6508483 | P152: 0.08243099005 | Q152: -102.6273669 | R152: -114633.0218 | S152: 5.620398923 | T152: 0.001115482037
B153: 0.137 | C153: 12334.1234 | D153: 37002.3702 | E153: 27.75319913 | F153: 12391 | G153: 5652 | H153: 67407.2468 | I153: 270.7599656 | J153: 27.44687846 | K153: 82.34063537 | L153: 0.06175863972 | M153: 27.57344482 | N153: 12.57728271 | O153: 256.7015146 | P153: 0.08307218289 | Q153: -102.647377 | R153: -114632.9253 | S153: 5.621493459 | T153: 0.001123793292
B154: 0.138 | C154: 12334.02075 | D154: 37002.06226 | E154: 27.95849389 | F154: 12391 | G154: 5652 | H154: 67407.04151 | I154: 270.7655871 | J154: 27.44673363 | K154: 82.34020089 | L154: 0.06221566752 | M154: 27.5735288 | N154: 12.57732102 | O154: 256.7521997 | P154: 0.08371390873 | Q154: -102.6673943 | R154: -114632.8287 | S154: 5.622588393 | T154: 0.001132106166
B155: 0.139 | C155: 12333.91809 | D155: 37001.75426 | E155: 28.16382867 | F155: 12391 | G155: 5652 | H155: 67406.83617 | I155: 270.7712097 | J155: 27.44658877 | K155: 82.33976632 | L155: 0.06267278723 | M155: 27.57361279 | N155: 12.57735933 | O155: 256.8029036 | P155: 0.08435616806 | Q155: -102.687419 | R155: -114632.7321 | S155: 5.623683726 | T155: 0.001140420662
B156: 0.14 | C156: 12333.8154 | D156: 37001.44619 | E156: 28.36920351 | F156: 12391 | G156: 5652 | H156: 67406.6308 | I156: 270.7768334 | J156: 27.44644389 | K156: 82.33933166 | L156: 0.06312999888 | M156: 27.5736968 | N156: 12.57739765 | O156: 256.8536262 | P156: 0.08499896133 | Q156: -102.7074509 | R156: -114632.6355 | S156: 5.624779458 | T156: 0.00114873678
B157: 0.141 | C157: 12333.71269 | D157: 37001.13807 | E157: 28.57461841 | F157: 12391 | G157: 5652 | H157: 67406.42538 | I157: 270.7824582 | J157: 27.44629897 | K157: 82.33889691 | L157: 0.06358730251 | M157: 27.57378083 | N157: 12.57743598 | O157: 256.9043675 | P157: 0.08564228903 | Q157: -102.7274901 | R157: -114632.5389 | S157: 5.625875588 | T157: 0.00115705452
B158: 0.142 | C158: 12333.60996 | D158: 37000.82989 | E158: 28.78007339 | F158: 12391 | G158: 5652 | H158: 67406.21993 | I158: 270.788084 | J158: 27.44615403 | K158: 82.33846208 | L158: 0.06404469816 | M158: 27.57386488 | N158: 12.57747432 | O158: 256.9551277 | P158: 0.08628615161 | Q158: -102.7475366 | R158: -114632.4422 | S158: 5.626972119 | T158: 0.001165373882
B159: 0.143 | C159: 12333.50722 | D159: 37000.52165 | E159: 28.98556847 | F159: 12391 | G159: 5652 | H159: 67406.01443 | I159: 270.793711 | J159: 27.44600905 | K159: 82.33802716 | L159: 0.06450218585 | M159: 27.57394894 | N159: 12.57751266 | O159: 257.0059066 | P159: 0.08693054956 | Q159: -102.7675904 | R159: -114632.3456 | S159: 5.628069048 | T159: 0.001173694868
B160: 0.144 | C160: 12333.40445 | D160: 37000.21334 | E160: 29.19110365 | F160: 12391 | G160: 5652 | H160: 67405.8089 | I160: 270.7993391 | J160: 27.44586405 | K160: 82.33759215 | L160: 0.06495976562 | M160: 27.57403302 | N160: 12.57755101 | O160: 257.0567043 | P160: 0.08757548334 | Q160: -102.7876515 | R160: -114632.249 | S160: 5.629166377 | T160: 0.001182017478
B161: 0.145 | C161: 12333.30166 | D161: 36999.90498 | E161: 29.39667895 | F161: 12391 | G161: 5652 | H161: 67405.60332 | I161: 270.8049682 | J161: 27.44571902 | K161: 82.33715706 | L161: 0.0654174375 | M161: 27.57411711 | N161: 12.57758937 | O161: 257.1075209 | P161: 0.08822095342 | Q161: -102.80772 | R161: -114632.1523 | S161: 5.630264106 | T161: 0.001190341713
B162: 0.146 | C162: 12333.19885 | D162: 36999.59656 | E162: 29.60229439 | F162: 12391 | G162: 5652 | H162: 67405.39771 | I162: 270.8105985 | J162: 27.44557396 | K162: 82.33672188 | L162: 0.06587520154 | M162: 27.57420123 | N162: 12.57762774 | O162: 257.1583562 | P162: 0.08886696028 | Q162: -102.8277957 | R162: -114632.0556 | S162: 5.631362236 | T162: 0.001198667573
B163: 0.147 | C163: 12333.09603 | D163: 36999.28808 | E163: 29.80794998 | F163: 12391 | G163: 5652 | H163: 67405.19205 | I163: 270.8162299 | J163: 27.44542887 | K163: 82.3362866 | L163: 0.06633305776 | M163: 27.57428536 | N163: 12.57766611 | O163: 257.2092104 | P163: 0.0895135044 | Q163: -102.8478788 | R163: -114631.959 | S163: 5.632460765 | T163: 0.001206995059
B164: 0.148 | C164: 12332.99318 | D164: 36998.97953 | E164: 30.01364574 | F164: 12391 | G164: 5652 | H164: 67404.98635 | I164: 270.8218623 | J164: 27.44528375 | K164: 82.33585125 | L164: 0.06679100619 | M164: 27.5743695 | N164: 12.5777045 | O164: 257.2600834 | P164: 0.09016058624 | Q164: -102.8679691 | R164: -114631.8623 | S164: 5.633559695 | T164: 0.001215324172
B165: 0.149 | C165: 12332.89031 | D165: 36998.67093 | E165: 30.21938168 | F165: 12391 | G165: 5652 | H165: 67404.78062 | I165: 270.8274959 | J165: 27.4451386 | K165: 82.3354158 | L165: 0.06724904688 | M165: 27.57445367 | N165: 12.57774289 | O165: 257.3109753 | P165: 0.09080820627 | Q165: -102.8880668 | R165: -114631.7656 | S165: 5.634659026 | T165: 0.001223654911
B166: 0.15 | C166: 12332.78742 | D166: 36998.36226 | E166: 30.42515781 | F166: 12391 | G166: 5652 | H166: 67404.57484 | I166: 270.8331305 | J166: 27.44499342 | K166: 82.33498027 | L166: 0.06770717985 | M166: 27.57453785 | N166: 12.57778129 | O166: 257.361886 | P166: 0.09145636499 | Q166: -102.9081719 | R166: -114631.6689 | S166: 5.635758758 | T166: 0.001231987278
B167: 0.151 | C167: 12332.68451 | D167: 36998.05354 | E167: 30.63097416 | F167: 12391 | G167: 5652 | H167: 67404.36903 | I167: 270.8387663 | J167: 27.44484821 | K167: 82.33454464 | L167: 0.06816540515 | M167: 27.57462204 | N167: 12.57781969 | O167: 257.4128156 | P167: 0.09210506285 | Q167: -102.9282842 | R167: -114631.5721 | S167: 5.63685889 | T167: 0.001240321273
B168: 0.152 | C168: 12332.58158 | D168: 36997.74475 | E168: 30.83683072 | F168: 12391 | G168: 5652 | H168: 67404.16317 | I168: 270.8444032 | J168: 27.44470298 | K168: 82.33410894 | L168: 0.0686237228 | M168: 27.57470626 | N168: 12.5778581 | O168: 257.4637641 | P168: 0.09275430033 | Q168: -102.9484039 | R168: -114631.4754 | S168: 5.637959425 | T168: 0.001248656897
B169: 0.153 | C169: 12332.47864 | D169: 36997.43591 | E169: 31.04272753 | F169: 12391 | G169: 5652 | H169: 67403.95727 | I169: 270.8500411 | J169: 27.44455771 | K169: 82.33367314 | L169: 0.06908213283 | M169: 27.57479049 | N169: 12.57789653 | O169: 257.5147315 | P169: 0.09340407791 | Q169: -102.968531 | R169: -114631.3787 | S169: 5.639060361 | T169: 0.00125699415
B170: 0.154 | C170: 12332.37567 | D170: 36997.127 | E170: 31.24866459 | F170: 12391 | G170: 5652 | H170: 67403.75134 | I170: 270.8556802 | J170: 27.44441242 | K170: 82.33323725 | L170: 0.0695406353 | M170: 27.57487474 | N170: 12.57793495 | O170: 257.5657177 | P170: 0.09405439607 | Q170: -102.9886653 | R170: -114631.2819 | S170: 5.640161698 | T170: 0.001265333033
B171: 0.155 | C171: 12332.27268 | D171: 36996.81804 | E171: 31.45464192 | F171: 12391 | G171: 5652 | H171: 67403.54536 | I171: 270.8613203 | J171: 27.44426709 | K171: 82.33280128 | L171: 0.06999923021 | M171: 27.574959 | N171: 12.57797339 | O171: 257.6167229 | P171: 0.09470525528 | Q171: -103.0088071 | R171: -114631.1851 | S171: 5.641263438 | T171: 0.001273673547
B172: 0.156 | C172: 12332.16967 | D172: 36996.50901 | E172: 31.66065954 | F172: 12391 | G172: 5652 | H172: 67403.33934 | I172: 270.8669616 | J172: 27.44412174 | K172: 82.33236522 | L172: 0.07045791762 | M172: 27.57504329 | N172: 12.57801184 | O172: 257.667747 | P172: 0.09535665603 | Q172: -103.0289561 | R172: -114631.0884 | S172: 5.64236558 | T172: 0.001282015692
B173: 0.157 | C173: 12332.06664 | D173: 36996.19992 | E173: 31.86671745 | F173: 12391 | G173: 5652 | H173: 67403.13328 | I173: 270.872604 | J173: 27.44397636 | K173: 82.33192907 | L173: 0.07091669756 | M173: 27.57512759 | N173: 12.57805029 | O173: 257.71879 | P173: 0.09600859878 | Q173: -103.0491126 | R173: -114630.9916 | S173: 5.643468124 | T173: 0.001290359469
B174: 0.158 | C174: 12331.96359 | D174: 36995.89078 | E174: 32.07281568 | F174: 12391 | G174: 5652 | H174: 67402.92718 | I174: 270.8782474 | J174: 27.44383094 | K174: 82.33149283 | L174: 0.07137557006 | M174: 27.5752119 | N174: 12.57808875 | O174: 257.769852 | P174: 0.09666108402 | Q174: -103.0692764 | R174: -114630.8948 | S174: 5.644571071 | T174: 0.001298704878
B175: 0.159 | C175: 12331.86052 | D175: 36995.58157 | E175: 32.27895423 | F175: 12391 | G175: 5652 | H175: 67402.72105 | I175: 270.883892 | J175: 27.4436855 | K175: 82.33105651 | L175: 0.07183453515 | M175: 27.57529624 | N175: 12.57812722 | O175: 257.8209329 | P175: 0.09731411222 | Q175: -103.0894475 | R175: -114630.798 | S175: 5.645674421 | T175: 0.001307051921
B176: 0.16 | C176: 12331.75743 | D176: 36995.2723 | E176: 32.48513312 | F176: 12391 | G176: 5652 | H176: 67402.51487 | I176: 270.8895377 | J176: 27.44354003 | K176: 82.3306201 | L176: 0.07229359288 | M176: 27.57538059 | N176: 12.57816569 | O176: 257.8720328 | P176: 0.09796768387 | Q176: -103.109626 | R176: -114630.7012 | S176: 5.646778174 | T176: 0.001315400596
B177: 0.161 | C177: 12331.65432 | D177: 36994.96297 | E177: 32.69135238 | F177: 12391 | G177: 5652 | H177: 67402.30865 | I177: 270.8951845 | J177: 27.44339453 | K177: 82.3301836 | L177: 0.07275274326 | M177: 27.57546496 | N177: 12.57820417 | O177: 257.9231516 | P177: 0.09862179944 | Q177: -103.1298119 | R177: -114630.6043 | S177: 5.647882331 | T177: 0.001323750906
B178: 0.162 | C178: 12331.55119 | D178: 36994.65358 | E178: 32.897612 | F178: 12391 | G178: 5652 | H178: 67402.10239 | I178: 270.9008323 | J178: 27.443249 | K178: 82.32974701 | L178: 0.07321198635 | M178: 27.57554934 | N178: 12.57824267 | O178: 257.9742895 | P178: 0.09927645942 | Q178: -103.1500052 | R178: -114630.5075 | S178: 5.648986891 | T178: 0.001332102851
B179: 0.163 | C179: 12331.44804 | D179: 36994.34413 | E179: 33.10391201 | F179: 12391 | G179: 5652 | H179: 67401.89609 | I179: 270.9064813 | J179: 27.44310344 | K179: 82.32931033 | L179: 0.07367132217 | M179: 27.57563374 | N179: 12.57828116 | O179: 258.0254463 | P179: 0.09993166429 | Q179: -103.1702059 | R179: -114630.4107 | S179: 5.650091854 | T179: 0.001340456431
B180: 0.164 | C180: 12331.34487 | D180: 36994.03462 | E180: 33.31025242 | F180: 12391 | G180: 5652 | H180: 67401.68975 | I180: 270.9121314 | J180: 27.44295785 | K180: 82.32887356 | L180: 0.07413075076 | M180: 27.57571816 | N180: 12.57831967 | O180: 258.0766221 | P180: 0.1005874145 | Q180: -103.1904139 | R180: -114630.3138 | S180: 5.651197222 | T180: 0.001348811647
B181: 0.165 | C181: 12331.24168 | D181: 36993.72505 | E181: 33.51663325 | F181: 12391 | G181: 5652 | H181: 67401.48337 | I181: 270.9177826 | J181: 27.44281224 | K181: 82.32843671 | L181: 0.07459027215 | M181: 27.5758026 | N181: 12.57835819 | O181: 258.127817 | P181: 0.1012437106 | Q181: -103.2106293 | R181: -114630.2169 | S181: 5.652302993 | T181: 0.001357168499
B182: 0.166 | C182: 12331.13847 | D182: 36993.41542 | E182: 33.72305451 | F182: 12391 | G182: 5652 | H182: 67401.27695 | I182: 270.9234349 | J182: 27.44266659 | K182: 82.32799977 | L182: 0.07504988638 | M182: 27.57588705 | N182: 12.57839671 | O182: 258.1790308 | P182: 0.101900553 | Q182: -103.2308521 | R182: -114630.1201 | S182: 5.65340917 | T182: 0.001365526989
B183: 0.167 | C183: 12331.03524 | D183: 36993.10573 | E183: 33.92951621 | F183: 12391 | G183: 5652 | H183: 67401.07048 | I183: 270.9290883 | J183: 27.44252091 | K183: 82.32756274 | L183: 0.07550959347 | M183: 27.57597152 | N183: 12.57843524 | O183: 258.2302637 | P183: 0.1025579422 | Q183: -103.2510823 | R183: -114630.0232 | S183: 5.65451575 | T183: 0.001373887116
B184: 0.168 | C184: 12330.93199 | D184: 36992.79597 | E184: 34.13601838 | F184: 12391 | G184: 5652 | H184: 67400.86398 | I184: 270.9347428 | J184: 27.44237521 | K184: 82.32712562 | L184: 0.07596939348 | M184: 27.57605601 | N184: 12.57847377 | O184: 258.2815156 | P184: 0.1032158788 | Q184: -103.2713199 | R184: -114629.9263 | S184: 5.655622736 | T184: 0.001382248881
B185: 0.169 | C185: 12330.82872 | D185: 36992.48616 | E185: 34.34256102 | F185: 12391 | G185: 5652 | H185: 67400.65744 | I185: 270.9403985 | J185: 27.44222947 | K185: 82.32668841 | L185: 0.07642928642 | M185: 27.57614051 | N185: 12.57851232 | O185: 258.3327866 | P185: 0.1038743631 | Q185: -103.2915649 | R185: -114629.8294 | S185: 5.656730126 | T185: 0.001390612286
B186: 0.17 | C186: 12330.72543 | D186: 36992.17628 | E186: 34.54914415 | F186: 12391 | G186: 5652 | H186: 67400.45086 | I186: 270.9460552 | J186: 27.44208371 | K186: 82.32625112 | L186: 0.07688927235 | M186: 27.57622503 | N186: 12.57855087 | O186: 258.3840767 | P186: 0.1045333956 | Q186: -103.3118173 | R186: -114629.7324 | S186: 5.657837922 | T186: 0.00139897733
B187: 0.171 | C187: 12330.62212 | D187: 36991.86635 | E187: 34.75576778 | F187: 12391 | G187: 5652 | H187: 67400.24423 | I187: 270.951713 | J187: 27.44193791 | K187: 82.32581373 | L187: 0.07734935128 | M187: 27.57630957 | N187: 12.57858943 | O187: 258.4353858 | P187: 0.105192977 | Q187: -103.3320771 | R187: -114629.6355 | S187: 5.658946123 | T187: 0.001407344014
B188: 0.172 | C188: 12330.51878 | D188: 36991.55635 | E188: 34.96243194 | F188: 12391 | G188: 5652 | H188: 67400.03757 | I188: 270.957372 | J188: 27.44179209 | K188: 82.32537626 | L188: 0.07780952325 | M188: 27.57639412 | N188: 12.578628 | O188: 258.486714 | P188: 0.1058531075 | Q188: -103.3523444 | R188: -114629.5386 | S188: 5.66005473 | T188: 0.001415712339
B189: 0.173 | C189: 12330.41543 | D189: 36991.2463 | E189: 35.16913662 | F189: 12391 | G189: 5652 | H189: 67399.83086 | I189: 270.963032 | J189: 27.44164623 | K189: 82.3249387 | L189: 0.07826978831 | M189: 27.5764787 | N189: 12.57866658 | O189: 258.5380613 | P189: 0.1065137878 | Q189: -103.372619 | R189: -114629.4416 | S189: 5.661163743 | T189: 0.001424082306
B190: 0.174 | C190: 12330.31206 | D190: 36990.93618 | E190: 35.37588186 | F190: 12391 | G190: 5652 | H190: 67399.62412 | I190: 270.9686932 | J190: 27.44150035 | K190: 82.32450105 | L190: 0.07873014648 | M190: 27.57656329 | N190: 12.57870516 | O190: 258.5894278 | P190: 0.1071750183 | Q190: -103.3929011 | R190: -114629.3446 | S190: 5.662273162 | T190: 0.001432453914
B191: 0.175 | C191: 12330.20867 | D191: 36990.626 | E191: 35.58266767 | F191: 12391 | G191: 5652 | H191: 67399.41733 | I191: 270.9743555 | J191: 27.44135444 | K191: 82.32406331 | L191: 0.0791905978 | M191: 27.57664789 | N191: 12.57874376 | O191: 258.6408133 | P191: 0.1078367994 | Q191: -103.4131906 | R191: -114629.2477 | S191: 5.663382987 | T191: 0.001440827165
B192: 0.176 | C192: 12330.10525 | D192: 36990.31576 | E192: 35.78949405 | F192: 12391 | G192: 5652 | H192: 67399.21051 | I192: 270.9800189 | J192: 27.4412085 | K192: 82.32362549 | L192: 0.0796511423 | M192: 27.57673252 | N192: 12.57878236 | O192: 258.6922179 | P192: 0.1084991318 | Q192: -103.4334875 | R192: -114629.1507 | S192: 5.664493219 | T192: 0.001449202059
B193: 0.177 | C193: 12330.00182 | D193: 36990.00546 | E193: 35.99636102 | F193: 12391 | G193: 5652 | H193: 67399.00364 | I193: 270.9856834 | J193: 27.44106252 | K193: 82.32318757 | L193: 0.08011178002 | M193: 27.57681716 | N193: 12.57882097 | O193: 258.7436417 | P193: 0.1091620158 | Q193: -103.4537919 | R193: -114629.0537 | S193: 5.665603857 | T193: 0.001457578597
B194: 0.178 | C194: 12329.89837 | D194: 36989.6951 | E194: 36.20326861 | F194: 12391 | G194: 5652 | H194: 67398.79673 | I194: 270.991349 | J194: 27.44091652 | K194: 82.32274957 | L194: 0.080572511 | M194: 27.57690182 | N194: 12.57885958 | O194: 258.7950847 | P194: 0.109825452 | Q194: -103.4741037 | R194: -114628.9567 | S194: 5.666714903 | T194: 0.001465956779
B195: 0.179 | C195: 12329.79489 | D195: 36989.38467 | E195: 36.41021681 | F195: 12391 | G195: 5652 | H195: 67398.58978 | I195: 270.9970157 | J195: 27.44077049 | K195: 82.32231148 | L195: 0.08103333526 | M195: 27.57698649 | N195: 12.5788982 | O195: 258.8465468 | P195: 0.1104894408 | Q195: -103.4944229 | R195: -114628.8597 | S195: 5.667826355 | T195: 0.001474336606
B196: 0.18 | C196: 12329.6914 | D196: 36989.07419 | E196: 36.61720566 | F196: 12391 | G196: 5652 | H196: 67398.38279 | I196: 271.0026835 | J196: 27.44062443 | K196: 82.3218733 | L196: 0.08149425284 | M196: 27.57707118 | N196: 12.57893684 | O196: 258.898028 | P196: 0.1111539828 | Q196: -103.5147496 | R196: -114628.7626 | S196: 5.668938216 | T196: 0.001482718078
B197: 0.181 | C197: 12329.58788 | D197: 36988.76365 | E197: 36.82423516 | F197: 12391 | G197: 5652 | H197: 67398.17576 | I197: 271.0083524 | J197: 27.44047834 | K197: 82.32143503 | L197: 0.08195526379 | M197: 27.57715589 | N197: 12.57897547 | O197: 258.9495285 | P197: 0.1118190784 | Q197: -103.5350838 | R197: -114628.6656 | S197: 5.670050483 | T197: 0.001491101197
B198: 0.182 | C198: 12329.48435 | D198: 36988.45304 | E198: 37.03130533 | F198: 12391 | G198: 5652 | H198: 67397.96869 | I198: 271.0140225 | J198: 27.44033222 | K198: 82.32099667 | L198: 0.08241636812 | M198: 27.57724062 | N198: 12.57901412 | O198: 259.0010481 | P198: 0.1124847281 | Q198: -103.5554254 | R198: -114628.5686 | S198: 5.671163159 | T198: 0.001499485962
B199: 0.183 | C199: 12329.38079 | D199: 36988.14238 | E199: 37.23841618 | F199: 12391 | G199: 5652 | H199: 67397.76158 | I199: 271.0196936 | J199: 27.44018607 | K199: 82.32055822 | L199: 0.08287756589 | M199: 27.57732536 | N199: 12.57905278 | O199: 259.052587 | P199: 0.1131509324 | Q199: -103.5757744 | R199: -114628.4715 | S199: 5.672276242 | T199: 0.001507872375
B200: 0.184 | C200: 12329.27722 | D200: 36987.83165 | E200: 37.44556772 | F200: 12391 | G200: 5652 | H200: 67397.55443 | I200: 271.0253659 | J200: 27.44003989 | K200: 82.32011968 | L200: 0.08333885711 | M200: 27.57741012 | N200: 12.57909144 | O200: 259.104145 | P200: 0.1138176918 | Q200: -103.5961309 | R200: -114628.3744 | S200: 5.673389734 | T200: 0.001516260436
... 4300 more rows
